fUSD/lending_fUSD_20250221
["ID","MTS","AMOUNT","RATE_DAILY","PERIOD"]
[353946196,1740162653763,-503.99618225,0.00013419,2]
[353946197,1740162653772,-500.0,0.00013419,2]
[353946198,1740162653781,-500.0,0.00013419,2]
[353946199,1740162653791,-688.94,0.00013419,2]
[353946200,1740162653800,-500.0,0.00013419,2]
[353946201,1740162653809,-500.0,0.00013419,2]
[353946202,1740162653819,-500.0,0.00013419,2]
[353946203,1740162653829,-500.0,0.00013419,2]
[353946204,1740162653838,-500.0,0.00013419,2]
[353946205,1740162653847,-3769.29,0.00013419,2]
[353946206,1740162653856,-500.0,0.00013419,2]
[353946207,1740162653865,-500.0,0.00013419,2]
[353946208,1740162653875,-500.0,0.00013419,2]
[353946209,1740162653884,-500.0,0.00013419,2]
[353946210,1740162653893,-500.0,0.00013419,2]
[353946211,1740162653903,-500.0,0.00013419,2]
[353946212,1740162653912,-500.0,0.00013419,2]
[353946213,1740162653922,-812.67,0.00013419,2]
[353946214,1740162653932,-527.78087388,0.00013419,2]
[353946215,1740162653942,-500.0,0.00013419,2]
[353946216,1740162653951,-500.0,0.00013419,2]
[353946217,1740162653960,-500.0,0.00013419,2]
[353946218,1740162653969,-712.12,0.00013419,2]
[353946219,1740162653979,-500.0,0.00013419,2]
[353946220,1740162653988,-500.0,0.00013419,2]
[353946221,1740162653997,-500.0,0.00013419,2]
[353946222,1740162654007,-506.28,0.00013419,2]
[353946223,1740162654016,-1362.32,0.00013419,2]
[353946224,1740162654025,-500.0,0.00013419,2]
[353946225,1740162654034,-500.0,0.00013419,2]
[353946226,1740162654044,-500.0,0.00013419,2]
[353946227,1740162654053,-500.0,0.00013419,2]
[353946228,1740162654062,-616.87,0.00013419,2]
[353946229,1740162654073,-661.05,0.00013419,2]
[353946230,1740162654082,-998.46,0.00013419,2]
[353946231,1740162654091,-500.0,0.00013419,2]
[353946232,1740162654100,-500.0,0.00013419,2]
[353946233,1740162654109,-500.0,0.00013419,2]
[353946234,1740162654119,-1909.3,0.00013419,2]
[353946235,1740162654129,-500.0,0.00013419,2]
[353946236,1740162654141,-500.0,0.00013419,2]
[353946237,1740162654151,-500.0,0.00013419,2]
[353946238,1740162654160,-272.54798089,0.00013419,2]
[353946239,1740162654170,-500.0,0.00013419,2]
[353946240,1740162654179,-500.0,0.00013419,2]
[353946241,1740162654188,-500.0,0.00013419,2]
[353946242,1740162654198,-508.9,0.00013419,2]
[353946243,1740162654207,-500.0,0.00013419,2]
[353946244,1740162654219,-500.0,0.00013419,2]
[353946245,1740162654229,-531.0,0.00013419,2]
[353946246,1740162654238,-500.0,0.00013419,2]
[353946247,1740162654248,-500.0,0.00013419,2]
[353946248,1740162654258,-829.71,0.00013419,2]
[353946249,1740162654267,-500.0,0.00013419,2]
[353946250,1740162654276,-1531.83,0.00013419,2]
[353946251,1740162654285,-508.66365507,0.00013419,2]
[353946252,1740162654294,-500.0,0.00013419,2]
[353946253,1740162654303,-500.0,0.00013419,2]
[353946254,1740162654313,-500.0,0.00013419,2]
[353946255,1740162654323,-500.0,0.00013419,2]
[353946256,1740162654332,-502.27247511,0.00013419,2]
[353946257,1740162654342,-500.0,0.00013419,2]
[353946258,1740162654351,-500.0,0.00013419,2]
[353946259,1740162654360,-500.0,0.00013419,2]
[353946260,1740162654369,-381.25477232,0.00013419,2]
[353946261,1740162654379,-500.0,0.00013419,2]
[353946262,1740162654388,-500.0,0.00013419,2]
[353946263,1740162654397,-500.0,0.00013419,2]
[353946264,1740162654407,-500.0,0.00013419,2]
[353946265,1740162654416,-500.0,0.00013419,2]
[353946266,1740162654426,-519.35,0.00013419,2]
[353946267,1740162654435,-755.13,0.00013419,2]
[353946268,1740162654444,-500.0,0.00013419,2]
[353946269,1740162654453,-761.8,0.00013419,2]
[353946270,1740162654462,-500.0,0.00013419,2]
[353946271,1740162654471,-574.43,0.00013419,2]
[353946272,1740162654481,-500.0,0.00013419,2]
[353946273,1740162654490,-1047.02,0.00013419,2]
[353946274,1740162654499,-500.0,0.00013419,2]
[353946275,1740162654509,-500.0,0.00013419,2]
[353946276,1740162654519,-737.49,0.00013419,2]
[353946277,1740162654528,-500.0,0.00013419,2]
[353946278,1740162654538,-563.2,0.00013419,2]
[353946279,1740162654547,-500.0,0.00013419,2]
[353946280,1740162654557,-500.0,0.00013419,2]
[353946281,1740162654566,-933.79,0.00013419,2]
[353946282,1740162654578,-500.0,0.00013419,2]
[353946283,1740162654587,-500.0,0.00013419,2]
[353946284,1740162654597,-664.07,0.00013419,2]
[353946285,1740162654606,-500.0,0.00013419,2]
[353946286,1740162654615,-500.0,0.00013419,2]
[353946287,1740162654625,-500.0,0.00013419,2]
[353946288,1740162654634,-500.0,0.00013419,2]
[353946289,1740162654643,-500.0,0.00013419,2]
[353946290,1740162654652,-500.0,0.00013419,2]
[353946291,1740162654662,-613.5374111,0.00013419,2]
[353946292,1740162654671,-500.0,0.00013419,2]
[353946293,1740162654681,-1774.71,0.00013419,2]
[353946294,1740162654690,-780.36,0.00013419,2]
[353946295,1740162654700,-500.0,0.00013419,2]
[353946296,1740162654709,-500.0,0.00013419,2]
[353946297,1740162654717,-500.0,0.00013419,2]
[353946298,1740162654726,-500.0,0.00013419,2]
[353946299,1740162654735,-500.0,0.00013419,2]
[353946300,1740162654744,-2015.37,0.00013419,2]
[353946301,1740162654753,-500.0,0.00013419,2]
[353946302,1740162654763,-500.0,0.00013419,2]
[353946303,1740162654772,-500.0,0.00013419,2]
[353946304,1740162654781,-503.00059111,0.00013419,2]
[353946305,1740162654790,-500.0,0.00013419,2]
[353946306,1740162654799,-519.75306551,0.00013419,2]
[353946307,1740162654808,-500.0,0.00013419,2]
[353946308,1740162654817,-500.0,0.00013419,2]
[353946309,1740162654828,-500.0,0.00013419,2]
[353946310,1740162654837,-500.0,0.00013419,2]
[353946311,1740162654846,-500.0,0.00013419,2]
[353946312,1740162654855,-849.12,0.00013419,2]
[353946313,1740162654864,-861.87,0.00013419,2]
[353946314,1740162654873,-525.24666923,0.00013419,2]
[353946315,1740162654883,-500.0,0.00013419,2]
[353946316,1740162654893,-500.0,0.00013419,2]
[353946317,1740162654903,-500.0,0.00013419,2]
[353946318,1740162654912,-500.0,0.00013419,2]
[353946319,1740162654922,-782.09,0.00013419,2]
[353946320,1740162654935,-500.0,0.00013419,2]
[353946321,1740162654945,-500.0,0.00013419,2]
[353946322,1740162654952,-2067.8,0.00013419,2]
[353946323,1740162654960,-500.0,0.00013419,2]
[353946324,1740162654969,-500.0,0.00013419,2]
[353946325,1740162654979,-598.47,0.00013419,2]
[353946326,1740162654988,-500.0,0.00013419,2]
[353946327,1740162654997,-500.0,0.00013419,2]
[353946328,1740162655006,-500.0,0.00013419,2]
[353946329,1740162655015,-500.0,0.00013419,2]
[353946330,1740162655024,-1085.44,0.00013419,2]
[353946331,1740162655034,-500.0,0.00013419,2]
[353946332,1740162655043,-500.0,0.00013419,2]
[353946333,1740162655054,-500.0,0.00013419,2]
[353946334,1740162655065,-500.0,0.00013419,2]
[353946335,1740162655074,-500.0,0.00013419,2]
[353946336,1740162655083,-500.0,0.00013419,2]
[353946337,1740162655093,-500.0,0.00013419,2]
[353946338,1740162655102,-500.0,0.00013419,2]
[353946339,1740162655112,-1113.24,0.00013419,2]
[353946340,1740162655123,-500.0,0.00013419,2]
[353946341,1740162655135,-500.0,0.00013419,2]
[353946342,1740162655143,-234.00778084,0.00013419,2]
[353946343,1740162655152,-500.0,0.00013419,2]
[353946344,1740162655161,-500.0,0.00013419,2]
[353946345,1740162655170,-500.0,0.00013419,2]
[353946346,1740162655179,-500.0,0.00013419,2]
[353946347,1740162655188,-500.0,0.00013419,2]
[353946348,1740162655197,-500.0,0.00013419,2]
[353946349,1740162655206,-500.0,0.00013419,2]
[353946350,1740162655216,-500.0,0.00013419,2]
[353946351,1740162655225,-515.30548674,0.00013419,2]
[353946352,1740162655234,-500.0,0.00013419,2]
[353946353,1740162655244,-500.0,0.00013419,2]
[353946354,1740162655254,-500.0,0.00013419,2]
[353946355,1740162655262,-500.0,0.00013419,2]
[353946356,1740162655271,-973.03,0.00013419,2]
[353946357,1740162655280,-500.0,0.00013419,2]
[353946358,1740162655289,-508.82,0.00013419,2]
[353946359,1740162655298,-500.0,0.00013419,2]
[353946360,1740162655307,-501.80143918,0.00013419,2]
[353946361,1740162655316,-500.0,0.00013419,2]
[353946362,1740162655326,-500.0,0.00013419,2]
[353946363,1740162655335,-500.0,0.00013419,2]
[353946364,1740162655344,-500.0,0.00013419,2]
[353946365,1740162655354,-500.0,0.00013419,2]
[353946366,1740162655365,-796.24,0.00013419,2]
[353946367,1740162655375,-500.0,0.00013419,2]
[353946368,1740162655383,-500.0,0.00013419,2]
[353946369,1740162655393,-502.22945296,0.00013419,2]
[353946370,1740162655402,-500.0,0.00013419,2]
[353946371,1740162655411,-500.0,0.00013419,2]
[353946372,1740162655420,-500.0,0.00013419,2]
[353946373,1740162655429,-805.46,0.00013419,2]
[353946374,1740162655438,-500.0,0.00013419,2]
[353946375,1740162655448,-500.0,0.00013419,2]
[353946376,1740162655457,-1070.49,0.00013419,2]
[353946377,1740162655467,-500.0,0.00013419,2]
[353946378,1740162655477,-501.8188706,0.00013419,2]
[353946379,1740162655486,-500.0,0.00013419,2]
[353946380,1740162655497,-500.0,0.00013419,2]
[353946381,1740162655506,-500.0,0.00013419,2]
[353946382,1740162655515,-500.0,0.00013419,2]
[353946383,1740162655525,-500.0,0.00013419,2]
[353946384,1740162655534,-500.0,0.00013419,2]
[353946385,1740162655543,-500.0,0.00013419,2]
[353946386,1740162655551,-500.0,0.00013419,2]
[353946387,1740162655560,-500.0,0.00013419,2]
[353946388,1740162655569,-500.0,0.00013419,2]
[353946389,1740162655581,-441.68913507,0.00013419,2]
[353946390,1740162655590,-500.0,0.00013419,2]
[353946391,1740162655599,-500.0,0.00013419,2]
[353946392,1740162655608,-500.0,0.00013419,2]
[353946393,1740162655617,-500.0,0.00013419,2]
[353946394,1740162655626,-619.03384542,0.00013419,2]
[353946395,1740162655635,-509.07773861,0.00013419,2]
[353946396,1740162655644,-500.0,0.00013419,2]
[353946397,1740162655653,-502.72214065,0.00013419,2]
[353946398,1740162655662,-500.0,0.00013419,2]
[353946399,1740162655672,-2097.07,0.00013419,2]
[353946400,1740162655681,-500.0,0.00013419,2]
[353946401,1740162655690,-500.0,0.00013419,2]
[353946402,1740162655699,-866.52,0.00013419,2]
[353946403,1740162655707,-500.0,0.00013419,2]
[353946404,1740162655716,-500.0,0.00013419,2]
[353946405,1740162655725,-500.0,0.00013419,2]
[353946406,1740162655735,-1819.11,0.00013419,2]
[353946407,1740162655744,-733.08,0.00013419,2]
[353946408,1740162655753,-500.0,0.00013419,2]
[353946409,1740162655762,-500.0,0.00013419,2]
[353946410,1740162655771,-559.81238518,0.00013419,2]
[353946411,1740162655780,-2141.09,0.00013419,2]
[353946412,1740162655789,-500.0,0.00013419,2]
[353946413,1740162655798,-500.0,0.00013419,2]
[353946414,1740162655807,-4451.31,0.00013419,2]
[353946415,1740162655815,-500.0,0.00013419,2]
[353946416,1740162655825,-885.63,0.00013419,2]
[353946417,1740162655833,-921.16,0.00013419,2]
[353946418,1740162655842,-500.0,0.00013419,2]
[353946419,1740162655851,-642.47,0.00013419,2]
[353946420,1740162655860,-2055.22,0.00013419,2]
[353946421,1740162655869,-500.0,0.00013419,2]
[353946422,1740162655878,-500.0,0.00013419,2]
[353946423,1740162655887,-500.0,0.00013419,2]
[353946424,1740162655896,-500.0,0.00013419,2]
[353946425,1740162656058,-500.0,0.00013419,2]
[353946426,1740162656068,-2037.1,0.00013419,2]
[353946427,1740162656079,-500.0,0.00013419,2]
[353946428,1740162656089,-500.0,0.00013419,2]
[353946429,1740162656099,-500.0,0.00013419,2]
[353946430,1740162656108,-500.0,0.00013419,2]
[353946431,1740162656118,-2287.62,0.00013419,2]
[353946432,1740162656128,-500.0,0.00013419,2]
[353946433,1740162656140,-500.0,0.00013419,2]
[353946434,1740162656150,-500.0,0.00013419,2]
[353946435,1740162656159,-500.0,0.00013419,2]
[353946436,1740162656169,-500.0,0.00013419,2]
[353946437,1740162656179,-1917.65,0.00013419,2]
[353946438,1740162656188,-500.0,0.00013419,2]
[353946439,1740162656197,-500.0,0.00013419,2]
[353946440,1740162656207,-2458.91,0.00013419,2]
[353946441,1740162656218,-500.0,0.00013419,2]
[353946442,1740162656228,-500.0,0.00013419,2]
[353946443,1740162656237,-500.0,0.00013419,2]
[353946444,1740162656247,-500.0,0.00013419,2]
[353946445,1740162656257,-500.0,0.00013419,2]
[353946446,1740162656266,-2408.04,0.00013419,2]
[353946447,1740162656275,-396.98979511,0.00013419,2]
[353946448,1740162656284,-506.64384469,0.00013419,2]
[353946449,1740162656294,-656.65,0.00013419,2]
[353946450,1740162656304,-500.0,0.00013419,2]
[353946451,1740162656314,-506.6,0.00013419,2]
[353946452,1740162656325,-2799.55,0.00013419,2]
[353946453,1740162656335,-621.27495369,0.00013419,2]
[353946454,1740162656344,-500.0,0.00013419,2]
[353946455,1740162656353,-500.0,0.00013419,2]
[353946456,1740162656362,-500.0,0.00013419,2]
[353946457,1740162656372,-480.75719005,0.00013419,2]
[353946458,1740162656381,-500.0,0.00013419,2]
[353946459,1740162656390,-500.0,0.00013419,2]
[353946460,1740162656400,-500.0,0.00013419,2]
[353946461,1740162656410,-500.0,0.00013419,2]
[353946462,1740162656419,-500.0,0.00013419,2]
[353946463,1740162656429,-151.0,0.00013419,2]
[353946464,1740162656439,-400.25335324,0.00013419,2]
[353946465,1740162656449,-500.0,0.00013419,2]
[353946466,1740162656458,-151.0,0.00013419,2]
[353946467,1740162656467,-736.06,0.00013419,2]
[353946468,1740162656479,-151.0,0.00013419,2]
[353946469,1740162656489,-3283.96,0.00013419,2]
[353946470,1740162656499,-500.0,0.00013419,2]
[353946471,1740162656509,-151.0,0.00013419,2]
[353946472,1740162656519,-500.0,0.00013419,2]
[353946473,1740162656527,-1439.58,0.00013419,2]
[353946474,1740162656536,-500.0,0.00013419,2]
[353946475,1740162656545,-508.00466441,0.00013419,2]
[353946476,1740162656555,-500.0,0.00013419,2]
[353946477,1740162656564,-500.0,0.00013419,2]
[353946478,1740162656574,-500.48,0.00013419,2]
[353946479,1740162656583,-500.0,0.0001342,2]
[353946480,1740162656593,-500.0,0.0001342,2]
[353946481,1740162656602,-500.0,0.0001342,2]
[353946482,1740162656611,-500.0,0.0001342,2]
[353946483,1740162656621,-500.0,0.0001342,2]
[353946484,1740162656630,-584.28,0.0001342,2]
[353946485,1740162656639,-686.44,0.0001342,2]
[353946486,1740162656648,-807.29,0.0001342,2]
[353946487,1740162656657,-1404.81,0.0001342,2]
[353946488,1740162656666,-500.0,0.0001342,2]
[353946489,1740162656675,-1146.55,0.0001342,2]
[353946490,1740162656684,-884.67,0.0001342,2]
[353946491,1740162656693,-1171.77,0.0001342,2]
[353946492,1740162656703,-500.0,0.0001342,2]
[353946493,1740162656711,-708.67,0.0001342,2]
[353946494,1740162656721,-500.0,0.0001342,2]
[353946495,1740162656730,-500.0,0.0001342,2]
[353946496,1740162656739,-596.77,0.0001342,2]
[353946497,1740162656751,-769.71,0.0001342,2]
[353946498,1740162656761,-911.98,0.0001342,2]
[353946499,1740162656770,-643.08,0.0001342,2]
[353946500,1740162656780,-602.66,0.0001342,2]
[353946501,1740162656789,-1374.38,0.0001342,2]
[353946502,1740162656798,-768.13,0.0001342,2]
[353946503,1740162656808,-1112.89,0.0001342,2]
[353946504,1740162656817,-869.96,0.0001342,2]
[353946505,1740162656827,-500.0,0.0001342,2]
[353946506,1740162656836,-1284.53,0.0001342,2]
[353946507,1740162656845,-862.34,0.0001342,2]
[353946508,1740162656854,-821.59,0.0001342,2]
[353946509,1740162656863,-566.16,0.0001342,2]
[353946510,1740162656872,-500.0,0.0001342,2]
[353946511,1740162656881,-955.46,0.0001342,2]
[353946512,1740162656890,-873.26,0.0001342,2]
[353946513,1740162656899,-500.0,0.0001342,2]
[353946514,1740162656909,-500.0,0.0001342,2]
[353946515,1740162656918,-500.0,0.0001342,2]
[353946516,1740162656927,-1580.3,0.0001342,2]
[353946517,1740162656936,-1093.05,0.0001342,2]
[353946518,1740162656945,-571.7,0.0001342,2]
[353946519,1740162656954,-500.0,0.0001342,2]
[353946520,1740162656963,-1025.39,0.0001342,2]
[353946521,1740162656972,-1158.73,0.0001342,2]
[353946522,1740162656981,-500.0,0.0001342,2]
[353946523,1740162656990,-1233.17,0.0001342,2]
[353946524,1740162656999,-500.0,0.0001342,2]
[353946525,1740162657008,-500.0,0.0001342,2]
[353946526,1740162657017,-1273.27,0.0001342,2]
[353946527,1740162657026,-1225.33,0.0001342,2]
[353946528,1740162657035,-500.0,0.0001342,2]
[353946529,1740162657044,-891.12,0.0001342,2]
[353946530,1740162657054,-672.07930399,0.0001342,2]
[353946531,1740162658414,-1015.85741245,0.00010958,2]
[353946532,1740162658448,-969.8689,0.00010958,2]
[353946533,1740162658492,-1163.25,0.00010958,2]
[353946534,1740162659033,-254.75193099,0.00010958,2]
[353946535,1740162659046,-1189.26699628,0.00010958,2]
[353946536,1740162659062,-1988.82476028,0.00010958,2]
[353946537,1740162659073,-500.0,0.00010958,2]
[353946538,1740162659083,-500.0,0.00010958,2]
[353946539,1740162659092,-1766.22,0.00010958,2]
[353946540,1740162659102,-6581.82,0.00011041,2]
[353946541,1740162659111,-500.0,0.00011041,2]
[353946542,1740162659121,-500.0,0.00011041,2]
[353946543,1740162659130,-1766.22,0.00011041,2]
[353946544,1740162659145,-6581.82,0.00011123,2]
[353946545,1740162659155,-500.0,0.00011123,2]
[353946546,1740162659164,-500.0,0.00011123,2]
[353946547,1740162659174,-1766.22,0.00011123,2]
[353946548,1740162659184,-6581.82,0.00011205,2]
[353946549,1740162659194,-329.7,0.00011205,2]
[353946550,1740162659203,-500.0,0.00011205,2]
[353946551,1740162659213,-1766.22,0.00011205,2]
[353946552,1740162659223,-6581.82,0.00011287,2]
[353946553,1740162659233,-500.0,0.00011287,2]
[353946554,1740162659243,-6581.82,0.00011369,2]
[353946555,1740162659254,-6581.82,0.00011452,2]
[353946556,1740162659263,-6581.82,0.00011534,2]
[353946557,1740162659272,-6581.82,0.00011616,2]
[353946558,1740162659281,-6581.82,0.00011698,2]
[353946559,1740162659291,-6581.82,0.0001178,2]
[353946560,1740162659300,-6581.82,0.00011863,2]
[353946561,1740162659310,-6581.82,0.00011945,2]
[353946562,1740162659319,-6581.82,0.00012027,2]
[353946563,1740162659328,-6581.82,0.00012109,2]
[353946564,1740162659338,-677.73,0.00012191,2]
[353946565,1740162659347,-6581.82,0.00012191,2]
[353946566,1740162659357,-677.73,0.00012273,2]
[353946567,1740162659366,-6581.82,0.00012273,2]
[353946568,1740162659375,-677.73,0.00012356,2]
[353946569,1740162659385,-6581.82,0.00012356,2]
[353946570,1740162659395,-677.73,0.00012438,2]
[353946571,1740162659404,-6581.82,0.00012438,2]
[353946572,1740162659414,-677.73,0.0001252,2]
[353946573,1740162659423,-6581.82,0.0001252,2]
[353946574,1740162659433,-677.73,0.00012602,2]
[353946575,1740162659442,-1529.84,0.00012684,2]
[353946576,1740162659451,-677.73,0.00012684,2]
[353946577,1740162659461,-1529.84,0.00012767,2]
[353946578,1740162659471,-677.73,0.00012767,2]
[353946579,1740162659482,-1529.85071315,0.00012849,2]
[353946580,1740162659492,-677.89584834,0.00012849,2]
[353946581,1740162659502,-34.57069601,0.0001342,2]
[353946582,1740162659512,-500.0,0.0001342,2]
[353946583,1740162659521,-500.0,0.0001342,2]
[353946584,1740162659531,-846.76,0.0001342,2]
[353946585,1740162659540,-824.57,0.0001342,2]
[353946586,1740162659550,-994.99,0.0001342,2]
[353946587,1740162659559,-780.17,0.0001342,2]
[353946588,1740162659568,-1534.8,0.0001342,2]
[353946589,1740162659578,-1833.8,0.0001342,2]
[353946590,1740162659587,-1815.06,0.0001342,2]
[353946591,1740162659596,-500.0,0.0001342,2]
[353946592,1740162659606,-500.0,0.0001342,2]
[353946593,1740162659615,-737.03,0.0001342,2]
[353946594,1740162659625,-983.59,0.0001342,2]
[353946595,1740162659634,-500.0,0.0001342,2]
[353946596,1740162659643,-1053.28,0.0001342,2]
[353946597,1740162659653,-1004.41,0.0001342,2]
[353946598,1740162659663,-1865.24,0.0001342,2]
[353946599,1740162659672,-1144.06,0.0001342,2]
[353946600,1740162659681,-500.0,0.0001342,2]
[353946601,1740162659691,-151.0,0.0001342,2]
[353946602,1740162659700,-500.0,0.0001342,2]
[353946603,1740162659709,-1407.66,0.0001342,2]
[353946604,1740162659719,-2108.39,0.0001342,2]
[353946605,1740162659728,-151.0,0.0001342,2]
[353946606,1740162659737,-500.0,0.0001342,2]
[353946607,1740162659746,-511.36,0.0001342,2]
[353946608,1740162659756,-1147.55,0.0001342,2]
[353946609,1740162659766,-172.846782,0.0001342,2]
[353946610,1740162659775,-961.09,0.0001342,2]
[353946611,1740162659784,-172.846782,0.0001342,2]
[353946612,1740162659794,-500.0,0.0001342,2]
[353946613,1740162659803,-500.0,0.0001342,2]
[353946614,1740162659813,-500.0,0.0001342,2]
[353946615,1740162659822,-1128.44,0.0001342,2]
[353946616,1740162659832,-500.0,0.0001342,2]
[353946617,1740162659841,-823.41,0.0001342,2]
[353946618,1740162659851,-942.14,0.0001342,2]
[353946619,1740162659860,-500.0,0.0001342,2]
[353946620,1740162659870,-1729.71,0.0001342,2]
[353946621,1740162659880,-500.0,0.00013424,2]
[353946622,1740162659889,-501.33,0.00013424,2]
[353946623,1740162659899,-355.12818682,0.00013473,2]
[353946624,1740162659909,-150.0,0.00013479,2]
[353946625,1740162659918,-150.0,0.00013481,2]
[353946626,1740162659927,-150.0,0.0001349,2]
[353946627,1740162659936,-150.0,0.00013494,2]
[353946628,1740162659946,-150.0,0.00013495,2]
[353946629,1740162659955,-150.0,0.00013498,2]
[353946630,1740162659966,-500.0,0.00013498,2]
[353946631,1740162659975,-500.0,0.00013499,2]
[353946632,1740162659984,-2426.80556,0.00013499,2]
[353946633,1740162659994,-500.0,0.00013499,2]
[353946634,1740162660003,-500.0,0.00013499,2]
[353946635,1740162660013,-500.0,0.00013499,2]
[353946636,1740162660022,-500.0,0.00013499,2]
[353946637,1740162660032,-500.0,0.00013499,2]
[353946638,1740162660042,-500.0,0.00013499,2]
[353946639,1740162660051,-500.0,0.00013499,2]
[353946640,1740162660061,-500.0,0.00013499,2]
[353946641,1740162660071,-500.0,0.00013499,2]
[353946642,1740162660083,-500.0,0.00013499,2]
[353946643,1740162660093,-500.0,0.00013499,2]
[353946644,1740162660102,-500.0,0.00013499,2]
[353946645,1740162660111,-500.0,0.00013499,2]
[353946646,1740162660120,-414.92,0.00013499,2]
[353946647,1740162660136,-186236.33320195,0.000135,3]
[353946648,1740162660145,-1453.0,0.000135,2]
[353946649,1740162660155,-910556.05683052,0.000135,5]
[353946650,1740162660168,-3183.97864965,0.000135,5]
[353946651,1740162660180,-2937.45099522,0.000135,5]
[353946652,1740162660191,-5100.0,0.000135,5]
[353946653,1740162660203,-5400.0,0.000135,5]
[353946654,1740162660226,-6581.82,0.00012602,2]
[353946655,1740162660236,-21639.7131807,0.000135,5]
[353946656,1740162660247,-12083.89946353,0.000135,5]
[353946657,1740162660266,-1660.73935901,0.000135,5]
[353946658,1740162660471,-1766.22,0.00011287,2]
[353946659,1740162660484,-511.79,0.00011369,2]
[353946660,1740162660495,-567.83156562,0.000135,5]
[353946661,1740162670971,715.04,9.625e-05,2]
[353946662,1740163182690,-504.79112293,0.00015,30]
[353946663,1740163183216,-3061.50343726,0.00016,30]
[353946664,1740163184064,-20310.70543981,0.0001688,30]
[353946673,1740163762210,679.28,8.219e-05,2]
[353946680,1740163831751,-1091.34,0.00010065,2]
[353946681,1740163831761,-150.0,0.00010134,2]
[353946682,1740163831769,-150.0,0.00010134,2]
[353946683,1740163831778,-153.12877001,0.00010209,2]
[353946684,1740163831789,-298.14577764,0.00010209,2]
[353946685,1740163831798,-191.19,0.00010281,2]
[353946686,1740163831808,-157.56422266,0.00010309,2]
[353946687,1740163831830,-6.32577734,0.00010309,2]
[353946688,1740163831839,-451.27454764,0.00010358,2]
[353946689,1740163831848,-300.0,0.00010456,2]
[353946690,1740163831857,-5726.2255887,0.00010457,2]
[353946691,1740163831868,-1699.03275295,0.00010457,2]
[353946692,1740163831916,-260.0045197,0.00010457,2]
[353946693,1740163832027,-16214.73713865,0.00010457,2]
[353946694,1740163832036,-679.28,0.00010476,2]
[353946695,1740163832045,-250.0,0.00010492,2]
[353946696,1740163832054,-800.0,0.000106,3]
[353946697,1740163832063,-300.0,0.000106,3]
[353946698,1740163832072,-1000.0,0.00010609,2]
[353946699,1740163832081,-2639.56,0.00010647,2]
[353946700,1740163832090,-150.0,0.00010697,2]
[353946701,1740163832098,-1700.0,0.000107,3]
[353946702,1740163832107,-600.0,0.000107,3]
[353946703,1740163832116,-2500.0,0.000108,3]
[353946704,1740163832125,-900.0,0.000108,3]
[353946705,1740163832135,-3400.0,0.000109,3]
[353946706,1740163832144,-1200.0,0.000109,3]
[353946707,1740163832153,-232.86162654,0.000109,2]
[353946708,1740163832162,-150.0,0.00010932,2]
[353946709,1740163832171,-325.36193016,0.00010939,2]